fUSD/lending_fUSD_20250304
["ID","MTS","AMOUNT","RATE_DAILY","PERIOD"]
[355383830,1741092063658,-204.952514,0.00012587,2]
[355383831,1741092063670,-204.952514,0.00012587,2]
[355383832,1741092063689,-204.952514,0.00012587,2]
[355383833,1741092063701,-204.952514,0.00012587,2]
[355383834,1741092063720,-204.952514,0.00012587,2]
[355383835,1741092063732,-204.952506,0.00012587,2]
[355383836,1741092063744,-178.386679,0.00012587,2]
[355383837,1741092063760,-178.386679,0.00012587,2]
[355383838,1741092063778,-178.386679,0.00012587,2]
[355383839,1741092063811,-178.386679,0.00012587,2]
[355383840,1741092063875,-178.386679,0.00012587,2]
[355383841,1741092063927,-178.386679,0.00012587,2]
[355383842,1741092063944,-178.386679,0.00012587,2]
[355383843,1741092063962,-178.386679,0.00012587,2]
[355383844,1741092063975,-178.386679,0.00012587,2]
[355383845,1741092063987,-566.064881,0.00012587,2]
[355383846,1741092064003,-178.386679,0.00012587,2]
[355383847,1741092064019,-566.064881,0.00012587,2]
[355383848,1741092064032,-178.386679,0.00012587,2]
[355383849,1741092064051,-178.386679,0.00012587,2]
[355383850,1741092064063,-566.064881,0.00012587,2]
[355383851,1741092064079,-178.386679,0.00012587,2]
[355383852,1741092064095,-178.386679,0.00012587,2]
[355383853,1741092064108,-566.064881,0.00012587,2]
[355383854,1741092064122,-178.386679,0.00012587,2]
[355383855,1741092064139,-566.064881,0.00012587,2]
[355383856,1741092064161,-178.386679,0.00012587,2]
[355383857,1741092064216,-566.064881,0.00012587,2]
[355383858,1741092064289,-178.386679,0.00012587,2]
[355383859,1741092064302,-178.386679,0.00012587,2]
[355383860,1741092064318,-566.064881,0.00012587,2]
[355383861,1741092064330,-178.386679,0.00012587,2]
[355383862,1741092064342,-566.064881,0.00012587,2]
[355383863,1741092064357,-178.386678,0.00012587,2]
[355383864,1741092064415,-566.064881,0.00012587,2]
[355383865,1741092064480,-566.064881,0.00012587,2]
[355383866,1741092064499,-566.064881,0.00012587,2]
[355383867,1741092064515,-566.064881,0.00012587,2]
[355383868,1741092064527,-566.064881,0.00012587,2]
[355383869,1741092064555,-566.064881,0.00012587,2]
[355383870,1741092064587,-566.064881,0.00012587,2]
[355383871,1741092064612,-566.064881,0.00012587,2]
[355383872,1741092064630,-566.064881,0.00012587,2]
[355383873,1741092064653,-566.064881,0.00012587,2]
[355383874,1741092064684,-566.064881,0.00012587,2]
[355383875,1741092064709,-566.064877,0.00012587,2]
[355383876,1741092064739,-151.0,0.00012587,2]
[355383877,1741092064768,-151.0,0.00012587,2]
[355383878,1741092064790,-151.0,0.00012587,2]
[355383879,1741092064808,-151.0,0.00012587,2]
[355383880,1741092064835,-151.0,0.00012587,2]
[355383881,1741092064876,-151.0,0.00012587,2]
[355383882,1741092064916,-151.0,0.00012587,2]
[355383883,1741092064945,-151.0,0.00012587,2]
[355383884,1741092064964,-151.0,0.00012587,2]
[355383885,1741092064984,-151.0,0.00012587,2]
[355383886,1741092065002,-151.0,0.00012587,2]
[355383887,1741092065019,-151.0,0.00012587,2]
[355383888,1741092065043,-151.0,0.00012587,2]
[355383889,1741092065062,-197.694095,0.00012587,2]
[355383890,1741092065087,-1018.26555548,0.00012587,2]
[355383891,1741092065105,-1018.6074578,0.00012587,2]
[355383892,1741092065129,-49728.05989258,0.00012587,2]
[355383893,1741092065147,-502.54886531,0.00012587,2]
[355383894,1741092065166,-252.08,0.00012587,2]
[355383895,1741092065185,-500.0,0.00012587,2]
[355383896,1741092065211,-166.10611322,0.00012587,2]
[355383897,1741092065230,-500.0,0.00012587,2]
[355383898,1741092065248,-500.0,0.00012587,2]
[355383899,1741092065265,-294.60042799,0.00012587,2]
[355383900,1741092065283,-500.0,0.00012587,2]
[355383901,1741092065300,-500.0,0.00012587,2]
[355383902,1741092065353,-419.70342359,0.00012587,2]
[355383903,1741092065388,-430924.43169365,0.00012587,2]
[355383904,1741092065406,-266651.10580554,0.00012587,2]
[355383905,1741092200801,515.1,9.897e-05,2]
[355383906,1741092310898,157.0,9.897e-05,3]
[355383925,1741092637038,-150.0,0.00011239,2]
[355383927,1741092637048,-210.4367498,0.00011239,2]
[355383985,1741092638128,-89.5632502,0.00011239,2]
[355383986,1741092638138,-150.0,0.00011239,2]
[355383987,1741092638149,-25620.94374979,0.0001124,2]
[355383988,1741092638240,-1042.82955653,0.0001124,2]
[355383989,1741092638464,-920.80945114,0.0001124,2]
[355383990,1741092638474,-1277.0,0.0001124,2]
[355383991,1741092638483,-2031.0,0.0001124,2]
[355383992,1741092638494,-571.0,0.0001124,2]
[355383993,1741092638503,-640.0,0.0001124,2]
[355383994,1741092638513,-673.12596721,0.0001124,2]
[355384008,1741092643291,-827.95409547,0.0001124,2]
[355384009,1741092644182,-44.31593732,0.0001124,2]
[355384010,1741092644192,-786.0,0.0001124,2]
[355384011,1741092644201,-1269.0,0.0001124,2]
[355384012,1741092644211,-1427.0,0.0001124,2]
[355384013,1741092644220,-907.0,0.0001124,2]
[355384014,1741092644230,-541.0,0.0001124,2]
[355384015,1741092644239,-4041.0,0.0001124,2]
[355384016,1741092644248,-140.82425642,0.0001124,2]
[355384017,1741092644269,-9.17574358,0.0001124,2]
[355384018,1741092644278,-3929.0,0.0001124,2]
[355384019,1741092644287,-150.0,0.0001124,2]
[355384020,1741092644297,-1012.0,0.0001124,2]
[355384021,1741092644306,-280.79,0.00011509,2]
[355384022,1741092644316,-150.0,0.00011517,7]
[355384023,1741092644327,-150.0,0.00011517,2]
[355384024,1741092644336,-1000.0,0.00011866,2]
[355384025,1741092644345,-500.0,0.00012,2]
[355384026,1741092644354,-500.0,0.00012,2]
[355384027,1741092644364,-500.0,0.00012,2]
[355384028,1741092644373,-500.0,0.00012,2]
[355384029,1741092644383,-500.0,0.00012,2]
[355384030,1741092644392,-500.0,0.00012,2]
[355384031,1741092644403,-500.0,0.00012,2]
[355384032,1741092644412,-500.0,0.00012,2]
[355384033,1741092644422,-500.0,0.00012,2]
[355384034,1741092644432,-500.0,0.00012,2]
[355384035,1741092644441,-738.0,0.00012,2]
[355384036,1741092644451,-515.1,0.00012161,2]
[355384037,1741092644460,-433.40598907,0.00012172,2]
[355384038,1741092644469,-150.0,0.000122,2]
[355384039,1741092644479,-8817.9376,0.00012229,2]
[355384040,1741092644488,-187.75,0.00012287,2]
[355384041,1741092644498,-255.0,0.00012295,2]
[355384042,1741092644508,-150.0,0.00012301,2]
[355384043,1741092644517,-151.0,0.00012329,2]
[355384044,1741092644527,-151.0,0.00012329,2]
[355384045,1741092644537,-155.731809,0.00012329,2]
[355384046,1741092644546,-1098.27562873,0.00012335,2]
[355384047,1741092644555,-1061.58248916,0.00012335,2]
[355384048,1741092644565,-1015.35850089,0.00012335,2]
[355384049,1741092644575,-420.0,0.00012347,2]
[355384050,1741092644585,-150.0,0.00012363,2]
[355384051,1741092644594,-651.77,0.000124,2]
[355384052,1741092644604,-30933.2709,0.00012487,2]
[355384053,1741092644614,-1933.0996,0.00012487,2]
[355384054,1741092644828,-2055.59977682,0.00012487,2]
[355384055,1741092644855,-524.22652351,0.00012487,2]
[355384056,1741092644865,-319.85007866,0.00012487,2]
[355384057,1741092644875,-1127.39580624,0.00012487,2]
[355384058,1741092644884,-1169.86124954,0.00012487,2]
[355384059,1741092644895,-1169.86124954,0.00012487,2]
[355384060,1741092644908,-7564.19926434,0.00012578,3]
[355384061,1741092644918,-874.97111138,0.00012582,2]
[355384062,1741092644928,-6251.6483454,0.00012582,2]
[355384063,1741092644939,-2009.0,0.00012587,2]
[355384064,1741092644948,-27557.14961419,0.00012587,2]
[355384065,1741092646624,-0.85410215,0.00012587,2]
[355384066,1741092646891,-3517.31608513,0.00012587,2]
[355384067,1741092646903,-840.62198561,0.00012587,2]
[355384068,1741092646915,-1111.99999958,0.00012587,2]
[355384069,1741092646938,-3424.66541,0.00012587,2]
[355384070,1741092659180,-0.95059871,0.00012587,2]
[355384071,1741092662020,1042.91,0.0001,2]
[355384078,1741093454139,339.33101001,0.00010221,2]
[355384079,1741093458868,9660.66898999,0.00010221,2]
[355384080,1741093458894,745.74857401,0.00010221,2]
[355384083,1741093700222,5000.0,0.0002,120]
[355384084,1741093716636,170.96,9.232e-05,2]
[355384085,1741093737844,570.14,8.991e-05,2]
[355384086,1741093779168,-150.0,0.0001035,2]
[355384087,1741093779198,-333.33333334,0.00010427,2]
[355384088,1741093779228,-150.0,0.00010524,2]
[355384089,1741093779257,-1201.60085444,0.00010527,2]
[355384090,1741093779287,-300.0,0.00010527,2]
[355384091,1741093779318,-4451.23928903,0.00010528,2]
[355384092,1741093779352,-2685.38609183,0.00010528,2]
[355384095,1741093831593,-1032.19193274,0.00010528,2]
[355384096,1741093831604,-500.0,0.00010628,2]
[355384097,1741093831614,-500.0,0.00010628,2]
[355384098,1741093831623,-500.0,0.00010628,2]
[355384099,1741093831633,-286.76143512,0.00010628,2]
[355384100,1741093831643,-150.0,0.00010699,2]
[355384101,1741093831652,-170.96,0.00010771,2]
[355384102,1741093831662,-1201.60085442,0.0001089,2]
[355384103,1741093831671,-675.38124628,0.000109,2]
[355384104,1741093831683,-356.81068644,0.000109,2]
[355384105,1741093831693,-448.11285355,0.00011,2]
[355384107,1741093831897,-101.88714645,0.00011,2]
[355384108,1741093831907,-300.38,0.00011112,2]
[355384110,1741093831917,-2377.36906957,0.00011152,2]
[355384326,1741093839636,-1551.63093043,0.00011152,2]
[355384328,1741093839646,-150.0,0.00011152,2]
[355384331,1741093839655,-1012.0,0.00011152,2]
[355384333,1741093839665,-300.38,0.00011165,2]
[355384334,1741093839675,-300.38,0.00011218,2]
[355384336,1741093839685,-300.0,0.00011229,2]
[355384338,1741093839695,-670.37408757,0.00011229,2]
[355384340,1741093839705,-150.0,0.00011239,2]
[355384342,1741093839715,-150.0,0.0001124,2]
[355384344,1741093839724,-150.0,0.0001124,2]
[355384346,1741093839734,-150.0,0.0001124,2]
[355384348,1741093839743,-150.0,0.0001124,2]
[355384350,1741093839752,-821.513,0.0001124,2]
[355384352,1741093839762,-2031.0,0.0001124,2]
[355384354,1741093839772,-62.87274493,0.0001124,2]
[355384359,1741093839813,-257.23329603,0.0001124,2]
[355384362,1741093839825,-250.89395904,0.0001124,2]
[355384363,1741093839834,-7.64072467,0.0001124,2]
[355384366,1741093839846,-1492.35927533,0.0001124,2]
[355384368,1741093839855,-640.0,0.0001124,2]
[355384370,1741093839864,-786.0,0.0001124,2]
[355384372,1741093839873,-1269.0,0.0001124,2]
[355384374,1741093839883,-1427.0,0.0001124,2]
[355384376,1741093839892,-541.0,0.0001124,2]
[355384378,1741093839901,-907.0,0.0001124,2]
[355384380,1741093839910,-4041.0,0.0001124,2]
[355384382,1741093839920,-1201.60085442,0.00011253,2]
[355384384,1741093839930,-570.14,0.00011255,2]
[355384386,1741093839939,-300.38,0.0001127,2]
[355384388,1741093839948,-150.0,0.000113,2]
[355384390,1741093839961,-23900.0,0.0001132,2]
[355384392,1741093839970,-300.38,0.00011323,2]
[355384394,1741093839980,-300.0,0.00011353,2]
[355384396,1741093839989,-300.38,0.00011376,2]
[355384398,1741093839998,-1000.0,0.00011417,2]
[355384400,1741093840008,-300.38,0.00011428,2]
[355384402,1741093840017,-300.38,0.00011481,2]
[355384404,1741093840026,-300.38,0.00011534,2]
[355384405,1741093840035,-1693.41291357,0.0001154,2]
[355385247,1741093845723,-1057.58708643,0.0001154,2]
[355385249,1741093845732,-380.53624102,0.0001154,2]
[355385251,1741093845744,-1410.72266856,0.0001154,2]
[355385263,1741093845845,-3711.38109042,0.0001154,2]
[355385265,1741093845854,-300.38,0.00011586,2]
[355385267,1741093845864,-300.38,0.00011639,2]
[355385269,1741093845873,-250.0,0.00011671,2]
[355385271,1741093845882,-150.0,0.00011691,2]
[355385273,1741093845891,-300.38,0.00011691,2]
[355385275,1741093845901,-168.26,0.00011721,2]
[355385277,1741093845911,-300.38,0.00011744,2]
[355385279,1741093845920,-300.38,0.00011797,2]
[355385281,1741093845929,-250.0,0.00011815,2]
[355385283,1741093845939,-300.38,0.00011849,2]
[355385285,1741093845948,-300.38,0.00011902,2]
[355385287,1741093845959,-205.0002605,0.00011955,2]
[355385291,1741093845992,-95.3797395,0.00011955,2]
[355385293,1741093846002,-700.0,0.00012,2]
[355385295,1741093846012,-300.38,0.00012007,2]
[355385297,1741093846021,-300.38,0.0001206,2]
[355385299,1741093846031,-300.38,0.00012112,2]
[355385302,1741093846040,-329.47439131,0.00012189,2]
[355385305,1741093846049,-187.75,0.00012287,2]
[355385307,1741093846058,-255.0,0.00012295,2]
[355385309,1741093846067,-170.96,0.00012309,2]
[355385311,1741093846077,-1284.33924052,0.00012335,2]
[355385313,1741093846088,-745.42696,0.0001246,2]
[355385315,1741093846099,-1035.6,0.00012469,2]
[355385317,1741093846108,-154.644,0.00012469,2]
[355385319,1741093846118,-1263.67681443,0.00012469,2]
[355385321,1741093846127,-68111.13412773,0.0001247,2]
[355385323,1741093846137,-524.0,0.00012487,2]
[355385325,1741093846147,-1449.694,0.00012487,2]
[355385327,1741093846156,-2141.41328491,0.00012487,2]
[355385329,1741093846167,-86307.76036425,0.0001258,2]
[355385332,1741093846179,-7553.49686,0.0001258,2]
[355385622,1741094025563,-300.0,0.00010852,2]
[355385623,1741094028829,-300.0,0.00010852,2]
[355385624,1741094479747,-150.0,0.00010851,2]
[355385625,1741094479775,-550.0,0.00010852,2]
[355385626,1741094479802,-550.0,0.00010852,2]
[355385627,1741094479827,-161.0,0.00010852,3]
[355385628,1741094479856,-157.0,0.00010852,3]
[355385629,1741094479883,-5660.75054868,0.00010852,2]
[355385630,1741094479910,-29399.24945132,0.00010852,2]
[355385631,1741094518971,-749.76,0.0001065,2]
[355385638,1741094795162,-3834.2,0.00010345,2]
[355385639,1741094795189,-177.03,0.00010345,2]
[355385640,1741094795216,-379.99,0.00010522,2]
[355385641,1741094795241,-108.78,0.00010636,2]
[355385643,1741094852937,-150.0,0.0001093,7]
[355385644,1741094862343,336.98,0.00010166,2]
[355385646,1741094896758,1032.55,9.013e-05,2]
[355385651,1741094926034,-524.5,0.000105,3]
[355385653,1741094945127,-3929.51,0.00010269,2]
[355385654,1741094945158,-550.0,0.00010343,2]
[355385655,1741094945190,-500.0,0.00010417,2]
[355385656,1741094945222,-575.5,0.000105,3]
[355385657,1741094945254,-1018.54879805,0.000106,3]
[355385658,1741094945290,-1181.45120195,0.000106,3]
[355385659,1741094945323,-41.22,0.00010636,2]
[355385660,1741094945354,-1805.57858946,0.000107,3]
[355385661,1741094945390,-1494.42141054,0.000107,3]
[355385662,1741094945420,-4500.0,0.000108,3]
[355385663,1741094945455,-161.0,0.00010852,3]
[355385664,1741094945486,-158.0,0.00010852,3]
[355385665,1741094945516,-260.13738751,0.00010864,2]
[355385666,1741094945557,-739.86261249,0.00010864,2]
[355385667,1741094945590,-165.4,0.00010865,2]
[355385668,1741094945622,-499.99,0.00010865,2]
[355385669,1741094945657,-5168.30618556,0.00010865,2]
[355385670,1741094945950,-4831.68381444,0.00010865,2]
[355385671,1741094945984,-299.99,0.00010865,2]
[355385672,1741094946017,-150.99,0.00010865,2]
[355385673,1741094946050,-999.99,0.00010865,2]
[355385674,1741094946089,-290.90498361,0.00010865,2]
[355385675,1741094946129,-3070.73501639,0.00010865,2]
[355385676,1741094946161,-330.26,0.00010865,2]
[355385677,1741094946192,-3172.56378166,0.00010865,2]
[355385678,1741094962096,170.96,8.744e-05,2]
[355385679,1741094967642,282.34,0.00010201,2]
[355385691,1741095031731,-158.0,0.00010852,3]
[355385693,1741095031741,-161.0,0.00010852,3]
[355385694,1741095031751,-97.79146914,0.00010858,2]
[355385696,1741095031763,-52.20853086,0.00010858,2]
[355385698,1741095031773,-150.0,0.00010864,2]
[355385699,1741095031783,-1029.64278955,0.00010865,2]
[355385700,1741095031795,-428.59140228,0.00010865,2]
[355385701,1741095031815,-362.80380498,0.00010865,2]
[355385702,1741095031827,-5006.38822153,0.00010865,2]
[355385703,1741095031836,-444.13877847,0.00010865,2]
[355385704,1741095031889,-2223.98122153,0.00010865,2]
[355385705,1741095031899,-79748.88,0.00010865,2]
[355385706,1741095031909,-9999.99,0.00010865,2]
[355385707,1741095031919,-9999.99,0.00010865,2]
[355385708,1741095031929,-5600.0,0.000109,3]
[355385709,1741095031939,-1775.85,0.0001093,2]
[355385710,1741095031949,-419.61,0.0001093,2]
[355385711,1741095031959,-23900.0,0.00010938,2]
[355385712,1741095031969,-419.61,0.00010982,2]
[355385713,1741095031979,-550.0,0.00011,2]
[355385714,1741095031989,-550.40190334,0.00011033,2]
[355385715,1741095031999,-500.0,0.00011033,2]
[355385716,1741095032012,-419.61,0.00011034,2]
[355385717,1741095032022,-4424.7737,0.00011085,2]
[355385718,1741095032032,-1456.8066,0.00011085,2]
[355385719,1741095032042,-1307.2205,0.00011085,2]
[355385720,1741095032052,-419.61,0.00011086,2]
[355385721,1741095032062,-16846.21170251,0.00011099,2]
[355385722,1741095032071,-16846.21170243,0.00011099,2]
[355385723,1741095032081,-200.0,0.00011114,2]
[355385724,1741095032090,-324.15724243,0.00011129,2]
[355385725,1741095032100,-2500.0,0.00011129,2]
[355385726,1741095032110,-419.61,0.00011138,2]
[355385727,1741095032119,-167.70682393,0.00011141,2]
[355385728,1741095032133,-286.38930992,0.00011141,2]
[355385729,1741095032142,-625.527,0.00011166,2]
[355385730,1741095032152,-1478.0473,0.00011166,2]
[355385731,1741095032162,-3716.2188,0.00011166,2]
[355385732,1741095032172,-992.8453,0.00011166,2]
[355385733,1741095032181,-25627.14698319,0.00011175,2]
[355385734,1741095032191,-250.0,0.00011185,2]
[355385735,1741095032201,-419.61,0.00011189,2]
[355385736,1741095032210,-2730.0,0.00011205,2]
[355385737,1741095032220,-162.33,0.00011209,2]
[355385738,1741095032230,-150.0,0.00011209,2]
[355385739,1741095032239,-3632.3796,0.00011213,2]
[355385740,1741095032248,-545.29,0.00011223,2]
[355385741,1741095032258,-300.0,0.00011229,2]
[355385742,1741095032267,-666.0,0.00011229,2]
[355385743,1741095032276,-77525.12902297,0.00011229,2]
[355385744,1741095032286,-500.0,0.00011229,2]
[355385745,1741095032296,-500.0,0.00011229,2]
[355385746,1741095032306,-500.0,0.00011229,2]
[355385747,1741095032316,-318.03544977,0.00011229,2]
[355385748,1741095032325,-500.0,0.00011229,2]
[355385749,1741095032335,-500.0,0.00011229,2]
[355385750,1741095032345,-500.0,0.00011229,2]
[355385752,1741095032354,-4118355.60898606,0.0001123,2]
[355385754,1741095032363,-419.61,0.00011241,2]
[355385756,1741095032373,-1000.0,0.00011257,2]
[355385758,1741095032388,-300.0,0.00011265,2]
[355385760,1741095032399,-1000.0,0.00011266,2]
[355385762,1741095032409,-300.0,0.00011266,2]
[355385769,1741095032592,-1811.22,0.00011266,2]
[355385770,1741095032604,-161.10531011,0.00011273,2]
[355385771,1741095032614,-300.17844,0.00011273,2]
[355385772,1741095032624,-1032.55,0.00011277,2]
[355385773,1741095032636,-419.61,0.00011293,2]
[355385774,1741095032646,-550.0,0.00011295,2]
[355385775,1741095032656,-150.0,0.00011295,2]
[355385776,1741095032666,-419.61,0.00011345,2]
[355385777,1741095032675,-324.15724242,0.00011355,2]
[355385778,1741095032685,-300.0,0.00011356,2]
[355385779,1741095032695,-246.909,0.00011357,2]
[355385780,1741095032706,-571.0,0.00011357,2]
[355385781,1741095032715,-640.0,0.00011357,2]
[355385782,1741095032725,-1500.0,0.00011357,2]
[355385783,1741095032734,-791.0,0.00011357,2]
[355385784,1741095032744,-1269.0,0.00011357,2]
[355385785,1741095032754,-1427.0,0.00011357,2]
[355385786,1741095032763,-541.0,0.00011357,2]
[355385787,1741095032773,-907.0,0.00011357,2]
[355385788,1741095032782,-4041.0,0.00011357,2]
[355385789,1741095032792,-1113.0,0.00011357,2]
[355385790,1741095032801,-1277.0,0.00011357,2]
[355385791,1741095032811,-3929.0,0.00011357,2]
[355385792,1741095032820,-176.736,0.00011357,2]
[355385793,1741095032830,-300.0,0.00011358,2]
[355385794,1741095032839,-1000.0,0.00011359,2]
[355385795,1741095032848,-550.0,0.0001138,2]
[355385796,1741095032858,-419.61,0.00011396,2]
[355385797,1741095032868,-419.61,0.00011448,2]
[355385798,1741095032881,-165.4,0.00011462,2]
[355385799,1741095032890,-1980.3,0.00011477,2]
[355385800,1741095032899,-419.61,0.000115,2]
[355385801,1741095032909,-2751.0,0.00011507,2]
[355385802,1741095032918,-612.7,0.00011513,2]
[355385803,1741095032927,-419.61,0.00011552,2]
[355385804,1741095032936,-324.15724242,0.00011582,2]
[355385805,1741095032945,-419.61,0.00011604,2]
[355385806,1741095032955,-419.61,0.00011655,2]
[355385807,1741095032964,-517.0327,0.00011689,2]
[355385808,1741095032973,-419.61,0.00011707,2]
[355385809,1741095032982,-419.61,0.00011759,2]
[355385810,1741095032992,-160.24797146,0.00011773,2]
[355385811,1741095033001,-3047.52,0.0001179,2]
[355385812,1741095033011,-324.15724242,0.00011808,2]
[355385813,1741095033020,-419.61,0.00011811,2]
[355385814,1741095033030,-188.32,0.00011814,2]
[355385815,1741095033040,-419.61,0.00011862,2]
[355385816,1741095033050,-255.0,0.00011906,2]
[355385817,1741095033060,-419.61,0.00011914,2]
[355385818,1741095033070,-1510.81,0.00011926,2]
[355385819,1741095033080,-550.0,0.00011937,2]
[355385820,1741095033090,-150.0,0.00011937,2]
[355385821,1741095033100,-167.48115874,0.00011947,2]
[355385822,1741095033110,-749.76,0.00011981,2]
[355385823,1741095033121,-1047.22237601,0.00012,2]
[355385824,1741095033134,-2726.0,0.00012032,2]
[355385825,1741095033144,-324.15724242,0.00012034,2]
[355385826,1741095033154,-165.4,0.0001206,2]
[355385827,1741095033163,-160.2102799,0.00012073,2]
[355385828,1741095033174,-166.98413664,0.00012073,2]
[355385829,1741095033184,-324.15724242,0.00012261,2]
[355385830,1741095033194,-5304.3701,0.00012274,2]
[355385831,1741095033204,-500.0,0.00012274,2]
[355385832,1741095033214,-500.0,0.00012274,2]
[355385833,1741095033223,-500.0,0.00012274,2]
[355385834,1741095033234,-500.0,0.00012274,2]
[355385835,1741095033243,-500.0,0.00012274,2]
[355385836,1741095033253,-500.0,0.00012274,2]
[355385837,1741095033263,-500.0,0.00012274,2]
[355385838,1741095033273,-500.0,0.00012274,2]
[355385839,1741095033283,-500.0,0.00012274,2]
[355385840,1741095033292,-500.0,0.00012274,2]
[355385841,1741095033303,-500.0,0.00012274,2]
[355385842,1741095033313,-759.0,0.00012274,2]
[355385843,1741095033323,-500.0,0.00012274,2]
[355385844,1741095033333,-500.0,0.00012274,2]
[355385845,1741095033342,-500.0,0.00012274,2]
[355385846,1741095033352,-500.0,0.00012274,2]
[355385847,1741095033362,-500.0,0.00012274,2]
[355385848,1741095033371,-500.0,0.00012274,2]
[355385849,1741095033385,-500.0,0.00012274,2]
[355385850,1741095033395,-500.0,0.00012274,2]
[355385851,1741095033405,-500.0,0.00012274,2]
[355385852,1741095033414,-719.0,0.00012274,2]
[355385853,1741095033425,-150.0,0.00012291,2]
[355385854,1741095033435,-150.0,0.00012292,2]
[355385855,1741095033445,-1000.0,0.0001231,2]
[355385856,1741095033458,-215.4346759,0.00012335,2]
[355385857,1741095033468,-150.0,0.00012365,2]
[355385858,1741095033478,-150.0,0.00012369,2]
[355385859,1741095033488,-150.0,0.00012399,2]
[355385860,1741095033499,-1100.0,0.000124,4]
[355385861,1741095033509,-2572.6366,0.0001248,2]
[355385862,1741095033519,-243.4158,0.0001248,2]
[355385863,1741095033531,-5266.4433,0.0001248,2]
[355385864,1741095033541,-150.0,0.0001248,2]
[355385865,1741095033551,-727.90280503,0.0001248,2]
[355385866,1741095033561,-2295.36286957,0.00012485,2]
[355385867,1741095033571,-343.47914117,0.00012486,3]
[355385868,1741095033582,-170.33806649,0.00012487,2]
[355385869,1741095033592,-1530.51070568,0.00012487,2]
[355385870,1741095033602,-167.48115874,0.00012487,2]
[355385871,1741095033612,-324.15724242,0.00012487,2]
[355385872,1741095033622,-727.90280502,0.00012487,2]
[355385873,1741095033636,-300.43090695,0.000125,2]
[355385874,1741095033646,-1100.0,0.000125,4]
[355385875,1741095033656,-23453.0,0.00012548,2]
[355385876,1741095033666,-2431.0,0.00012548,2]
[355385877,1741095033677,-1000.0,0.00012565,2]
[355385878,1741095033688,-154.30073198,0.00012573,2]
[355385879,1741095033698,-154.0,0.0001258,3]
[355385880,1741095033708,-250000.0,0.0001258,2]
[355385881,1741095033719,-2547.4742,0.0001258,2]
[355385882,1741095033729,-3701.3295499,0.00012582,2]
[355385883,1741095033740,-2047.5052026,0.00012582,2]
[355385884,1741095033750,-682.7986702,0.00012582,2]
[355385885,1741095033760,-200.53223133,0.00012586,3]
[355385886,1741095033770,-1176.10002366,0.00012586,3]
[355385887,1741095033780,-7911988.45457782,0.00012587,2]
[355385888,1741095034482,-1810849.17933,0.00012587,2]
[355385889,1741095034495,-1021520.0,0.00012587,2]
[355385890,1741095034508,-20634.53735753,0.00012587,2]
[355385891,1741095034533,-6186.76748901,0.00012587,2]
[355385892,1741095034560,-4030.11038381,0.00012587,2]
[355385893,1741095034573,-2995.83,0.00012587,2]
[355385894,1741095034586,-294.33656805,0.00012587,2]
[355385895,1741095034599,-475.22000005,0.00012587,2]
[355385896,1741095034612,-413.27807374,0.00012587,2]
[355385897,1741095034652,-180.55397175,0.00011228,3]
[355385898,1741095034664,-250.19602825,0.00012587,2]
[355385899,1741095034676,-540.49795588,0.00012587,2]
[355385900,1741095034692,-828.38281732,0.00012587,2]
[355385901,1741095034718,-1472.14757156,0.00012587,2]
[355385902,1741095034733,-1208.7485247,0.00012587,2]
[355385903,1741095034746,-752.76793986,0.00012587,2]
[355385907,1741095037672,-2079.24975989,0.00011099,2]
[355385908,1741095037684,-265.9533479,0.00011099,2]